bitfinex/quotes_ETHUSD_20241130
["timestamp","ask_amount","ask_price","bid_price","bid_amount"]
[1732928477260,0.02789513,3589.2,3588.8,1.2585]
[1732928477461,2.81408513,3589.2,3588.8,1.2585]
[1732928477805,2.81411513,3589.1,3588.8,1.2585]
[1732928477987,2.88515,3590.5,3588.8,1.2585]
[1732928477988,2.78599,3589.4,3588.8,1.2585]
[1732928478192,2.78622,3589.1,3588.8,1.2585]
[1732928478363,2.78629,3589.0,3588.8,1.2585]
[1732928478563,2.78629,3589.0,3588.9,0.55]
[1732928479094,2.78655,3588.7,3588.4,1.537]
[1732928479299,2.78655,3588.7,3588.4,1.2585]
[1732928479595,2.78647,3588.8,3588.4,1.2585]
[1732928480262,2.78647,3588.8,3588.5,0.55]
[1732928481274,2.78653,3588.7,3588.5,0.55]
[1732928481478,2.78642,3588.9,3588.5,0.55]
[1732928481709,2.78637,3588.9,3588.5,0.55]
[1732928482288,3.34566488,3590.1,3589.2,1.2585]
[1732928482503,3.34562488,3590.1,3589.5,0.55]
[1732928482675,2.78559,3589.9,3589.5,0.55]
[1732928482884,2.78591,3589.5,3589.3,0.55]
[1732928483273,2.78581,3589.7,3589.3,0.55]
[1732928483676,2.78583,3589.6,3589.3,0.55]
[1732928484203,2.78581,3589.7,3589.3,0.55]
[1732928485007,2.7856,3589.9,3589.5,0.55]
[1732928485311,2.7856,3589.9,3589.6,0.258681]
[1732928485519,2.78513,3590.5,3589.9,0.55]
[1732928485723,2.78489,3590.8,3590.1,0.55]
[1732928486015,2.7843,3591.6,3589.9,3.33558]
[1732928486016,2.78517,3590.5,3589.9,3.33558]
[1732928486312,2.78521,3590.4,3589.9,0.55]
[1732928486474,2.78505,3590.6,3589.9,0.55]
[1732928486671,3.342053,3590.6,3589.9,0.55]
[1732928486934,2.78481,3590.9,3590.3,2.78526]
[1732928487209,2.78485,3590.9,3590.5,1.2414]
[1732928487421,2.78495,3590.8,3590.5,1.2414]
[1732928487718,3.09142013,3590.7,3590.2,1.7914]
[1732928487901,2.81292513,3590.7,3590.2,1.7914]
[1732928488074,2.78503,3590.7,3590.2,1.7914]
[1732928489181,2.78509,3590.6,3590.2,1.7914]
[1732928489680,2.78509,3590.6,3589.8,2.78565]
[1732928489681,2.78528,3590.3,3589.9,1.7914]
[1732928490081,2.78544,3590.1,3589.6,1.2414]
[1732928491431,2.78544,3590.1,3589.7,0.55]
[1732928491881,2.78544,3590.1,3589.3,1.2414]
[1732928491882,2.78567,3589.8,3589.3,1.2414]
[1732928492079,0.02789513,3589.7,3589.3,1.2414]
[1732928492592,2.81364513,3589.7,3589.3,1.2414]
[1732928493694,2.78587,3589.6,3589.4,0.55]
[1732928494092,2.78587,3589.6,3588.5,0.57024864]
[1732928494093,0.02789513,3589.5,3588.8,2.78641]
[1732928494324,0.02789513,3589.5,3588.8,1.2414]
[1732928494325,2.78602,3589.4,3588.8,1.2414]
[1732928494628,2.7861,3589.3,3588.8,1.2414]
[1732928494916,2.78602,3589.4,3588.8,1.2414]
[1732928495121,2.78607,3589.3,3588.8,1.2414]
[1732928495292,2.78602,3589.4,3588.8,1.2414]
[1732928495697,2.78602,3589.4,3588.9,0.55]
[1732928496023,2.78613,3589.2,3588.9,0.55]
[1732928496224,2.81414513,3589.1,3588.9,0.55]
[1732928496398,2.78613,3589.2,3588.9,0.55]
[1732928496726,0.02789513,3589.1,3588.9,0.55]
[1732928497024,2.81414513,3589.1,3588.9,0.55]
[1732928497330,2.78625,3589.1,3588.9,0.55]
[1732928498396,0.56002151,3589.1,3588.6,1.7914]
[1732928498723,2.78623,3589.1,3588.6,1.7914]
[1732928499219,0.02789513,3589.0,3588.6,1.7914]
[1732928499419,2.78606,3589.3,3588.6,4.57795]
[1732928499723,2.78614,3589.2,3588.6,4.57795]
[1732928500225,2.78614,3589.2,3588.7,2.78652]
[1732928500415,2.78598,3589.4,3588.9,0.55]
[1732928501019,2.78608,3589.3,3588.7,3.33652]
[1732928501395,2.78608,3589.3,3588.8,2.78643]
[1732928501808,2.78608,3589.3,3588.9,0.55]
[1732928502198,2.81381513,3589.5,3588.9,0.55]
[1732928502521,2.78592,3589.5,3588.9,3.33632]
[1732928504285,2.78599,3589.4,3588.8,0.55]
[1732928504497,0.02789513,3589.4,3588.7,3.33646]
[1732928504694,2.78613,3589.3,3588.7,0.55]
[1732928504936,2.78626,3589.1,3588.7,0.55]
[1732928505104,0.30929764,3589.2,3588.6,1.2414]
[1732928505307,2.78652,3588.7,3588.6,1.2414]
[1732928505537,2.78652,3588.7,3588.2,1.2414]
[1732928506096,0.02789513,3588.8,3588.2,4.02826]
[1732928506301,2.78645,3588.8,3588.3,3.0]
[1732928506524,2.78645,3588.8,3588.2,4.02826]
[1732928506525,2.81447513,3588.7,3588.2,1.2414]
[1732928506729,2.81447513,3588.7,3588.3,0.55]
[1732928507731,2.78661,3588.6,3588.3,0.55]
[1732928507929,0.02789513,3588.7,3588.3,0.55]
[1732928508950,2.81444513,3588.7,3588.3,0.55]
[1732928509247,2.78669,3588.5,3588.0,0.54493298]
[1732928509400,2.78676,3588.4,3588.0,0.54493298]
[1732928509602,2.78684,3588.3,3588.0,0.54493298]
[1732928510214,2.78672,3588.5,3588.0,0.54493298]
[1732928510546,2.78676,3588.4,3588.0,0.54493298]
[1732928510901,2.78699,3588.1,3588.0,0.54493298]
[1732928511213,2.78699,3588.1,3588.0,0.55]
[1732928511415,2.78676,3588.4,3587.9,0.55]
[1732928513178,2.78598,3589.4,3587.9,0.55]
[1732928513179,2.78609,3589.3,3587.9,0.55]
[1732928513326,2.78609,3589.3,3587.5,3.0]
[1732928513327,2.7866,3588.6,3588.3,0.55]
[1732928513756,2.7866,3588.6,3588.1,3.33698]
[1732928514359,0.25707139,3589.2,3587.7,4.2414]
[1732928514360,2.78686,3588.3,3587.7,4.2414]
[1732928514553,2.81480513,3588.2,3587.8,0.55]
[1732928514769,2.78691,3588.2,3587.8,0.55]
[1732928514968,2.78681,3588.4,3587.8,0.55]
[1732928515163,2.81459513,3588.5,3587.8,0.55]
[1732928515370,2.81475513,3588.3,3587.8,0.55]
[1732928515572,2.78686,3588.3,3587.8,0.55]
[1732928516339,0.02789513,3588.2,3587.8,0.55]
[1732928516541,1.2487,3588.7,3587.7,1.2414]
[1732928516542,2.78711,3588.0,3587.7,1.2414]
[1732928516754,0.278711,3587.9,3587.7,1.2414]
[1732928516941,0.278711,3587.9,3587.3,2.78757]
[1732928516942,2.78711,3588.0,3587.4,1.2414]
[1732928517164,2.81503513,3587.9,3587.5,0.55]
[1732928517560,4.03574,3588.1,3587.5,0.55]
[1732928517778,2.81497513,3588.0,3587.5,0.55]
[1732928519231,2.78708,3588.0,3587.5,0.55]
[1732928519438,2.78701,3588.1,3587.5,0.55]
[1732928519666,2.78701,3588.1,3586.7,2.71184077]
[1732928519667,1.2487,3586.5,3585.7,0.2785]
[1732928519849,1.2487,3586.5,3584.7,1.5322036]
[1732928519850,2.16144049,3585.6,3584.7,1.5322036]
[1732928520047,2.16144049,3585.6,3584.3,1.2414]
[1732928520048,2.68435967,3585.6,3584.3,1.2414]
[1732928521382,2.78984,3584.5,3584.0,0.2785]
[1732928521735,2.78984,3584.5,3583.8,0.2785]
[1732928521951,2.7895,3584.9,3584.0,2.79016]
[1732928522280,2.78963,3584.7,3583.9,3.0687]
[1732928522639,2.81739513,3584.9,3584.0,3.0]
[1732928522940,2.78933,3585.1,3584.2,2.78995]
[1732928523267,2.78918,3585.3,3584.2,2.78995]
[1732928523268,2.78947,3585.0,3584.3,0.55]
[1732928523482,2.78948,3584.9,3584.2,2.78995]
[1732928523688,2.78925,3585.2,3584.2,2.78995]
[1732928523689,2.78941,3585.0,3584.3,0.55]
[1732928524399,2.78948,3584.9,3584.3,0.55]
[1732928524584,2.78925,3585.2,3584.2,2.78995]
[1732928524585,2.78932,3585.1,3584.2,2.78998]
[1732928524894,2.78932,3585.1,3584.3,0.55]
[1732928525101,2.78955,3584.9,3584.3,0.55]
[1732928525393,2.81745513,3584.8,3584.1,0.55]
[1732928526059,2.81745513,3584.8,3584.1,3.34008]
[1732928526259,0.02789513,3584.8,3584.1,3.34008]
[1732928526460,0.02789513,3584.8,3584.3,0.55]
[1732928526660,2.78941,3585.0,3584.3,3.33992]
[1732928527003,2.78956,3584.8,3584.2,0.55]
[1732928527170,0.02789513,3584.7,3584.0,3.0]
[1732928527370,2.78957,3584.8,3584.1,0.55]
[1732928527678,0.02789513,3584.7,3584.1,3.34008]
[1732928528060,2.7894,3585.0,3584.1,3.34008]
[1732928528061,0.02789513,3584.9,3584.1,3.34008]
[1732928528497,2.7894,3585.0,3584.2,2.78996]
[1732928528698,3.35005351,3585.0,3584.1,3.34004]
[1732928529003,0.02789513,3584.9,3584.3,0.55]
[1732928529293,3.35005351,3585.0,3584.3,3.3399]
[1732928530293,0.56065351,3585.0,3584.3,3.33993]
[1732928530498,2.78925,3585.2,3584.5,2.78975]
[1732928530660,2.78909,3585.4,3584.6,3.33965]
[1732928530877,0.40656851,3585.3,3584.6,3.33965]
[1732928531231,0.40656851,3585.3,3584.6,3.33966]
[1732928531519,0.40656851,3585.3,3584.6,0.55]
[1732928531687,1.27659513,3585.5,3584.6,0.55]
[1732928531688,0.02789513,3585.5,3584.7,4.04087]
[1732928531893,1.1888,3585.9,3585.4,0.55]
[1732928532223,2.78798,3586.9,3585.4,0.55]
[1732928532224,1.1888,3586.3,3585.5,2.789]
[1732928532401,2.78856,3586.1,3585.4,0.55]
[1732928532719,2.78856,3586.1,3585.4,3.33907]
[1732928533522,1.1888,3586.3,3585.6,0.55]
[1732928533724,3.9772,3586.3,3585.6,0.55]
[1732928534023,2.78863,3586.0,3585.3,0.55]
[1732928534320,2.81659513,3585.9,3585.1,0.55]
[1732928534503,2.7887,3585.9,3585.1,0.55]
[1732928534719,2.78887,3585.7,3585.1,0.55]
[1732928534896,2.7887,3585.9,3585.1,0.55]
[1732928535097,2.78858,3586.1,3585.3,2.7891]
[1732928535443,0.02789513,3586.0,3585.4,0.55]
[1732928535808,2.7887,3585.9,3585.4,0.55]
[1732928536013,0.02789513,3585.8,3585.4,0.55]
[1732928536399,0.02789513,3585.8,3585.3,2.78916]
[1732928536709,2.78863,3586.0,3585.4,0.55]
[1732928537026,2.78883,3585.8,3585.2,0.55]
[1732928537195,0.02789513,3585.7,3585.2,0.55]
[1732928538231,2.78901,3585.5,3585.0,3.55]
[1732928538439,2.7889,3585.7,3585.0,6.33939]
[1732928538801,2.78883,3585.8,3585.3,0.55]
[1732928539033,5.57768,3585.8,3585.3,0.55]
[1732928539238,2.78885,3585.7,3585.1,0.55]
[1732928539418,1.1888,3585.5,3584.8,0.55]
[1732928539604,2.78914,3585.4,3584.8,3.33953]
[1732928540932,3.97781,3585.5,3585.0,0.55]
[1732928541149,2.78913,3585.4,3584.8,0.55]
[1732928541456,2.78913,3585.4,3584.8,3.33955]
[1732928542301,2.78913,3585.4,3584.8,0.55]
[1732928542302,0.02789513,3585.3,3584.8,0.55]
[1732928542501,2.81707513,3585.3,3584.8,0.55]
[1732928542735,0.02789513,3585.3,3584.8,3.33954]
[1732928543139,1.1888,3585.5,3584.9,2.78947]
[1732928543438,1.1888,3585.5,3585.0,0.55]
[1732928543733,3.97782,3585.5,3584.8,3.3395]
[1732928544113,2.78909,3585.4,3584.8,3.3395]
[1732928544726,3.97786,3585.5,3584.9,2.78947]
[1732928545034,3.97786,3585.5,3585.0,0.55]
[1732928545410,1.1888,3585.5,3585.0,2.78935]
[1732928545611,1.2037,3585.8,3585.1,2.78929]
[1732928545817,1.2037,3585.8,3585.5,0.55]
[1732928546339,1.2037,3585.8,3585.4,0.55]
[1732928546904,1.2037,3585.8,3585.5,2.78898]
[1732928547240,1.2037,3585.8,3585.4,0.55]
[1732928548106,2.78863,3586.0,3585.4,0.55]
[1732928548524,3.96304,3586.1,3585.4,0.55]
[1732928548525,3.96304,3586.1,3585.4,2.78908]
[1732928548727,0.396304,3586.0,3585.5,0.55]
[1732928548935,3.184924,3586.0,3585.5,0.55]
[1732928549133,2.78847,3586.2,3585.5,0.55]
[1732928549439,2.78847,3586.2,3585.6,2.78893]
[1732928549672,2.78863,3586.0,3585.5,0.55]
[1732928549819,0.02789513,3585.9,3585.5,3.339]
[1732928550149,0.02789513,3585.9,3585.5,0.55]
[1732928550361,2.81659513,3585.9,3585.5,0.55]
[1732928551011,0.58841064,3585.9,3585.4,3.33908]
[1732928551210,0.58841064,3585.9,3585.2,0.55]
[1732928551450,2.78882,3585.8,3585.2,3.33923]
[1732928551656,2.78882,3585.8,3585.2,0.55]
[1732928551947,2.78894,3585.6,3585.2,0.55]
[1732928552117,2.78894,3585.6,3585.1,0.55]
[1732928552118,2.81691513,3585.5,3585.1,0.55]
[1732928552317,0.02789513,3585.5,3585.1,0.55]
[1732928552545,2.78902,3585.5,3585.1,0.55]
[1732928552741,0.675246,3585.5,3584.7,2.7896]
[1732928552944,0.675246,3585.5,3584.5,6.58259838]
[1732928552945,2.78929,3585.2,3584.5,6.58259838]
[1732928553152,2.78932,3585.1,3584.5,6.58259838]
[1732928554317,2.7894,3585.0,3584.6,0.26070957]
[1732928554628,3.9639,3585.0,3584.6,0.55]
[1732928554950,3.96392,3585.0,3584.6,0.55]
[1732928555155,1.1745,3585.0,3584.6,0.55]
[1732928556417,2.78948,3584.9,3584.6,0.55]
[1732928556633,2.78963,3584.7,3584.1,6.58288838]
[1732928557765,2.78948,3584.9,3584.3,2.7899]
[1732928557766,2.78956,3584.8,3584.3,2.7899]
[1732928557948,2.78956,3584.8,3584.4,0.55]
[1732928558155,2.78919,3585.3,3584.6,0.55]
[1732928558473,1.1745,3585.3,3584.8,3.33949]
[1732928559127,1.1745,3585.3,3584.9,2.78944]
[1732928559365,1.1745,3585.3,3584.8,0.55]
[1732928559574,2.78924,3585.2,3584.7,0.55]
[1732928559721,1.1745,3585.3,3584.7,3.33957]
[1732928559925,4.360064,3585.3,3584.7,3.33957]
[1732928560163,1.570854,3585.3,3584.8,2.78953]
[1732928560366,3.09873,3585.9,3584.8,2.78953]
[1732928560367,3.96339,3585.7,3585.1,0.55]
[1732928560658,2.78893,3585.6,3585.1,0.55]
[1732928560925,3.495162,3585.6,3585.1,0.55]
[1732928561071,3.0987,3585.9,3585.2,2.78923]
[1732928561272,3.0987,3585.9,3585.3,0.55]
[1732928561441,2.78895,3585.6,3585.3,0.55]
[1732928561849,2.78895,3585.6,3585.1,0.55]
[1732928562147,2.78902,3585.5,3585.0,0.55]
[1732928562350,5.5781,3585.5,3585.0,0.55]
[1732928562549,2.81699513,3585.4,3585.0,0.55]
[1732928562955,2.81699513,3585.4,3584.8,4.00221]
[1732928562956,2.78925,3585.2,3584.7,0.55]
[1732928563159,0.02789513,3585.1,3584.7,3.33962]
[1732928563370,0.02789513,3585.2,3584.7,3.33962]
[1732928563671,0.02789513,3585.2,3584.7,0.55]
[1732928563878,0.02789513,3585.2,3584.9,0.55]
[1732928564082,0.67806351,3585.2,3584.2,4.00266]
[1732928564283,2.78945,3585.0,3584.4,2.78981]
[1732928564433,2.78929,3585.2,3584.6,2.78971]
[1732928564644,2.78929,3585.2,3584.4,2.78981]
[1732928564645,2.7894,3585.0,3584.4,2.78981]
[1732928565258,2.7894,3585.0,3584.5,2.78978]
[1732928565860,0.675291,3585.1,3584.6,0.55]
[1732928566059,3.464631,3585.1,3584.6,0.55]
[1732928566286,3.464621,3585.1,3584.6,3.33969]
[1732928566595,2.78941,3585.0,3584.5,0.55]
[1732928567090,2.78941,3585.0,3584.3,0.55]
[1732928567091,3.5322681,3585.0,3584.3,0.55]
[1732928567246,2.78956,3584.8,3584.3,0.55]
[1732928567446,2.78956,3584.8,3584.3,5.92003838]
[1732928567790,2.78942,3585.0,3584.3,3.13011838]
[1732928567952,2.78943,3585.0,3584.3,5.92000838]
[1732928568266,1.1745,3585.3,3584.3,5.92000838]
[1732928568267,2.78947,3584.9,3584.3,5.92000838]
[1732928568649,3.347344,3584.9,3584.3,5.92000838]
[1732928569046,3.347344,3584.9,3584.3,8.70987838]
[1732928569811,0.557874,3584.9,3584.3,5.91998838]
[1732928570112,2.78927,3585.2,3584.5,3.33978]
[1732928570270,3.96366,3585.3,3584.9,0.55]
[1732928570586,2.78924,3585.2,3584.7,0.55]
[1732928571261,2.78932,3585.1,3584.7,0.55]
[1732928571597,2.78932,3585.1,3584.5,3.33972]
[1732928572363,1.2496,3585.5,3585.0,2.78933]
[1732928572566,4.03844,3585.8,3585.0,0.55]
[1732928572773,2.78885,3585.7,3585.2,2.78918]
[1732928572964,2.78902,3585.5,3585.0,3.3394]
[1732928573191,5.57777,3585.7,3585.0,3.3394]
[1732928573374,0.7106247,3585.7,3585.0,0.55]
[1732928573567,1.528477,3585.8,3585.0,0.55]
[1732928573568,2.78917,3585.3,3585.0,0.55]
[1732928573772,2.78932,3585.1,3584.4,2.78981]
[1732928573994,2.7894,3585.0,3584.2,2.78998]
[1732928574178,2.7894,3585.0,3584.3,3.0]
[1732928574917,2.78932,3585.1,3584.4,2.78986]
[1732928575078,5.57904,3584.9,3584.4,0.55]
[1732928575401,2.78957,3584.8,3584.4,0.55]
[1732928575602,2.78957,3584.8,3584.3,3.0]
[1732928575603,2.81753513,3584.7,3584.3,0.55]
[1732928575944,2.78949,3584.9,3584.3,3.33994]
[1732928576109,2.78948,3584.9,3584.6,0.55]
[1732928576415,2.78948,3584.9,3584.3,3.33993]
[1732928576610,2.78957,3584.8,3584.3,3.33993]
[1732928577406,2.81753513,3584.7,3584.1,3.34007]
[1732928577573,2.78955,3584.8,3584.3,2.78994]
[1732928577773,2.78955,3584.8,3584.4,0.55]
[1732928578187,3.5127112,3584.9,3584.4,3.33986]
[1732928578389,0.7232312,3584.9,3584.4,3.33986]
[1732928578586,0.7232312,3584.9,3584.4,0.55]
[1732928578811,3.5127612,3584.9,3584.3,0.55]
[1732928579676,2.78953,3584.9,3584.3,3.3399]
[1732928580722,5.57908,3584.9,3584.3,3.3399]
[1732928581017,1.2496,3585.2,3584.6,0.55]
[1732928581224,0.02789513,3585.7,3584.8,3.13011838]
[1732928581439,1.2496,3585.8,3585.4,0.55]
[1732928581713,1.2496,3586.0,3585.4,0.55]
[1732928581915,0.682645,3586.0,3585.8,0.55]
[1732928582221,0.56757065,3586.7,3585.0,2.78936]
[1732928582222,2.78892,3585.7,3585.2,2.58011838]
[1732928582511,2.78892,3585.7,3584.9,5.78941]
[1732928582512,2.78915,3585.4,3584.9,0.55]
[1732928582712,2.78918,3585.3,3584.9,0.55]
[1732928583079,2.78901,3585.5,3584.9,0.55]
[1732928583398,2.78909,3585.4,3584.9,0.55]
[1732928583609,4.03847,3585.7,3584.9,0.55]
[1732928583610,2.78894,3585.6,3585.0,2.78937]
[1732928583783,2.78894,3585.6,3584.9,0.55]
[1732928583784,2.78904,3585.5,3584.9,0.55]
[1732928583974,2.78912,3585.4,3584.9,0.55]
[1732928585218,2.81682513,3585.6,3584.9,0.55]
[1732928585513,3.192903,3585.5,3584.9,0.55]
[1732928585814,3.192903,3585.5,3584.9,3.33946]
[1732928587026,3.192873,3585.5,3585.1,0.55]
[1732928587954,3.192873,3585.5,3585.2,0.41770654]
[1732928588111,3.192873,3585.5,3585.3,0.41770654]
[1732928588438,3.192873,3585.5,3585.4,0.41770654]
[1732928590327,3.192873,3585.5,3585.4,0.41766283]
[1732928590506,1.2741,3586.0,3585.4,0.41766283]
[1732928590699,4.06278,3586.0,3585.4,0.41766283]
[1732928590900,2.78872,3585.9,3585.5,0.41766283]
[1732928591139,2.78872,3585.9,3585.6,0.41766283]
[1732928591312,2.78872,3585.9,3585.7,0.41766283]
[1732928591508,3.473859,3585.9,3585.8,0.41766283]
[1732928592910,3.473859,3585.9,3585.1,0.41766283]
[1732928593239,2.78914,3585.4,3585.2,0.41766283]
[1732928593416,2.78914,3585.4,3585.0,0.55]
[1732928593417,2.78914,3585.4,3585.3,0.41766283]
[1732928593739,4.621051,3585.4,3585.3,0.41766283]
[1732928594436,4.621051,3585.4,3584.8,2.78948]
[1732928594646,2.78914,3585.4,3584.9,0.41760784]
[1732928594854,2.78925,3585.2,3585.0,0.41760784]
[1732928595029,2.78925,3585.2,3585.1,0.41760784]
[1732928595730,4.09124513,3585.2,3585.1,0.41760784]
[1732928595925,2.78965,3584.7,3584.2,0.41760784]
[1732928596126,2.78948,3584.9,3584.3,0.41768585]
[1732928596344,2.78965,3584.7,3584.4,0.41768585]
[1732928596662,2.78965,3584.7,3584.5,0.41768585]
[1732928596808,2.78965,3584.7,3584.1,1.2594]
[1732928596809,2.78965,3584.7,3584.6,0.41768585]
[1732928597253,3.37824864,3584.7,3584.6,0.41764564]
[1732928597555,2.78954,3584.9,3584.6,0.41764564]
[1732928597727,2.78963,3584.8,3584.7,0.41764564]
[1732928599512,2.81752513,3584.8,3584.7,0.41764564]
[1732928599759,2.78963,3584.8,3584.7,0.41764564]
[1732928599954,3.347547,3584.8,3584.7,0.41764564]
[1732928600453,3.37544213,3584.8,3584.7,0.41764564]
[1732928600611,4.64954213,3584.8,3584.7,0.41764564]
[1732928601230,2.78999,3584.3,3584.0,0.41764564]
[1732928601439,2.78999,3584.3,3584.1,0.41764564]
[1732928601647,2.78999,3584.3,3584.2,0.41764564]
[1732928605531,2.78981,3584.5,3584.2,0.41764564]
[1732928605730,2.78986,3584.4,3584.3,0.41764564]
[1732928606689,2.78996,3584.3,3583.9,0.41764564]
[1732928606993,2.78996,3584.3,3584.0,0.41764564]
[1732928606994,2.7901,3584.1,3584.0,0.41764564]
[1732928607393,2.7901,3584.1,3584.0,0.41694867]
[1732928608164,2.7901,3584.1,3583.8,0.55]
[1732928608165,2.7901,3584.1,3583.9,0.41694867]
[1732928608372,3.465736,3584.1,3584.0,0.41694867]
[1732928608579,2.79026,3583.9,3583.7,0.55]
[1732928608909,2.79026,3583.9,3583.6,0.55]
[1732928609699,2.79038,3583.8,3583.6,0.55]
[1732928610117,1.1763,3584.2,3583.6,0.55]
[1732928610279,2.7904,3583.8,3583.6,0.55]
[1732928610482,1.1763,3584.2,3583.6,0.55]
[1732928610681,2.79031,3583.9,3583.6,0.55]
[1732928610882,2.79072,3583.3,3583.1,1.2386]
[1732928611716,2.7908,3583.2,3582.8,1.2386]
[1732928612311,0.02789513,3583.8,3583.0,0.41695435]
[1732928612512,2.79069,3583.4,3583.1,0.96695435]
[1732928612688,2.79073,3583.3,3583.1,0.96695435]
[1732928613014,2.79069,3583.4,3583.0,0.55]
[1732928613376,2.79069,3583.4,3582.9,0.55]
[1732928613579,2.79069,3583.4,3582.9,3.34102]
[1732928613784,0.28181851,3583.8,3583.0,2.79095]
[1732928614015,2.79062,3583.5,3582.9,0.55]
[1732928614514,2.79066,3583.4,3582.9,0.55]
[1732928614816,2.79063,3583.5,3583.0,0.2602643]
[1732928614983,2.79063,3583.5,3582.9,3.34102]
[1732928614984,2.79064,3583.4,3582.9,3.34102]
[1732928616705,2.79074,3583.3,3582.9,0.55]
[1732928617641,2.79074,3583.3,3582.5,5.37143838]
[1732928617642,2.79089,3583.1,3582.6,3.34126]
[1732928617942,3.466518,3583.3,3582.6,5.92137838]
[1732928617943,2.79073,3583.3,3582.6,5.92137838]
[1732928618142,2.79084,3583.2,3582.6,3.13011838]
[1732928618564,2.79088,3583.1,3582.6,3.13011838]
[1732928618731,2.79088,3583.1,3582.6,5.92136838]
[1732928619042,2.79073,3583.3,3582.6,5.92136838]
[1732928619211,2.7908,3583.2,3582.6,5.92136838]
[1732928620005,0.558153,3583.2,3582.6,0.55]
[1732928620202,2.7911,3582.9,3582.6,0.55]
[1732928620408,0.02789513,3582.8,3582.6,0.55]
[1732928620708,0.02789513,3582.8,3582.5,1.2386]
[1732928620709,2.7911,3582.9,3582.5,1.2386]
[1732928620922,2.79113,3582.8,3582.5,1.2386]
[1732928621642,2.79113,3582.8,3582.3,2.79149]
[1732928621643,0.02789513,3582.7,3582.3,0.55]
[1732928621850,3.349353,3582.8,3582.3,0.55]
[1732928621851,2.79132,3582.6,3582.3,0.55]
[1732928622755,2.79129,3582.6,3582.3,0.55]
[1732928623109,2.81924513,3582.5,3581.9,2.9487901]
[1732928623315,2.79145,3582.4,3581.9,1.3955901]
[1732928624242,0.58616913,3582.3,3581.9,0.1569901]
[1732928624415,1.1763,3582.4,3581.9,0.1569901]
[1732928624855,2.79173,3582.0,3581.9,0.1569901]
[1732928626047,4.07703,3582.0,3581.9,0.1569901]
[1732928626266,5.043061,3582.0,3581.9,0.1569901]
[1732928631126,8.07095613,3582.0,3581.9,0.1569901]
[1732928631326,8.043061,3582.0,3581.9,0.1569901]
[1732928634841,1.2145,3582.9,3581.9,0.1569901]
[1732928635176,2.79126,3582.6,3581.9,0.1569901]
[1732928635334,2.79134,3582.5,3581.9,0.1569901]
[1732928635538,2.79156,3582.3,3581.9,0.1569901]
[1732928636431,2.7917,3582.1,3581.9,0.1569901]
[1732928636632,2.79173,3582.0,3581.9,0.1569901]
[1732928636830,0.02789513,3582.9,3581.9,0.1569901]
[1732928636831,2.79137,3582.5,3581.9,0.1569901]
[1732928637070,2.79137,3582.5,3581.9,2.9487501]
[1732928637480,2.79137,3582.5,3581.9,0.1569901]
[1732928637638,2.79158,3582.2,3581.9,0.1569901]
[1732928637840,0.400587,3582.4,3581.9,0.1569901]
[1732928638072,0.42848213,3582.4,3581.9,0.1569901]
[1732928638281,2.79172,3582.1,3581.9,0.1569901]
[1732928638437,2.79173,3582.0,3581.9,0.1569901]
[1732928638649,2.79172,3582.1,3581.9,0.1569901]
[1732928638979,2.79173,3582.0,3581.9,0.1569901]
[1732928639676,0.02789513,3582.4,3581.9,0.1569901]
[1732928639893,2.79142,3582.5,3581.9,2.9487501]
[1732928640101,0.679716,3582.4,3581.9,2.9487501]
[1732928640254,3.471186,3582.4,3581.9,0.1569901]
[1732928640453,0.679716,3582.4,3581.9,2.9487501]
[1732928640951,1.2145,3582.6,3581.9,2.9487501]
[1732928641159,0.14576257,3583.5,3581.9,2.9487501]
[1732928641160,2.79089,3583.1,3582.4,0.55]
[1732928641405,2.79108,3582.9,3582.1,3.34162]
[1732928642096,1.2145,3584.0,3582.8,1.1741]
[1732928642410,4.00474,3584.0,3583.3,2.79066]
[1732928642567,0.42836913,3583.9,3583.2,1.1741]
[1732928642769,2.79064,3583.4,3583.2,1.1741]
[1732928642970,0.02789513,3583.3,3582.9,1.7241]
[1732928643156,2.79071,3583.4,3582.9,1.1741]
[1732928643355,2.79081,3583.2,3582.5,2.79128]
[1732928643550,0.02789513,3583.1,3582.6,0.55]
[1732928643872,3.37976064,3583.1,3582.4,1.1741]
[1732928644077,2.79102,3583.0,3582.4,3.96549]
[1732928644970,0.02789513,3582.9,3582.4,1.1741]
[1732928645187,2.79113,3582.8,3582.4,1.1741]
[1732928645377,0.02789513,3582.7,3582.4,1.1741]
[1732928645788,2.81914513,3582.7,3582.4,1.1741]
[1732928645992,1.2145,3583.2,3582.2,4.53337]
[1732928645993,2.79097,3583.0,3582.2,4.53337]
[1732928646192,2.79119,3582.7,3582.2,1.7418]
[1732928646695,2.81908513,3582.7,3582.2,1.7418]
[1732928647074,2.79119,3582.7,3582.2,1.7418]
[1732928647514,2.81918513,3582.6,3582.2,1.1918]
[1732928647807,2.79129,3582.6,3582.2,1.1918]
[1732928649571,0.02789513,3582.5,3581.9,1.3534901]
[1732928650312,2.81924513,3582.5,3581.9,4.1452901]
[1732928650815,2.79158,3582.2,3581.9,0.1569901]
[1732928651159,0.02789513,3582.1,3581.9,0.1569901]
[1732928651418,2.79158,3582.2,3581.9,0.1569901]
[1732928651580,5.58297,3582.4,3581.9,0.1569901]
[1732928651777,0.558222,3582.7,3581.9,0.1569901]
[1732928652100,2.79125,3582.7,3582.2,0.55]
[1732928653274,2.79134,3582.5,3581.9,0.1569901]
[1732928653475,0.02789513,3583.0,3581.9,0.1569901]